{"text_format":"3","workbook":"xlsx","n_sheets":5,"sheets":["Rendezvény áttekintése","Vendéglista","Étel és ital","Egyéb alapvető tételek","Ülésrendtervező rács"],"not_rendered":{"defined_names":9},"read":"whole","date_system":"1900"}

{"sheet":"Rendezvény áttekintése","index":0,"n_rows":21,"n_cols":8,"rows_kept":21,"merged":[[6,3,6,4],[6,5,6,6],[9,1,9,2]]}
[]
[]
[null,"Rendezvény áttekintése"]
[]
[]
[null,"ESEMÉNY",null,"VENDÉGEK ÖSSZESÍTÉSE",{"$nulls":3},{"$f":"\"FÜGGŐBEN LÉVŐ VISSZAJELZÉSEK: \"&FüggőbenLévőVisszajelzések","v":"FÜGGŐBEN LÉVŐ VISSZAJELZÉSEK: 2"}]
[null,"Nagymama 75. születésnapja",null,"VISSZAJELZÉSEK ÁTNÉZÉSE",null,"VENDÉGENKÉNTI KÖLTSÉG",null,"KÖLTSÉGVETÉS ÖSSZEGE"]
[{"$nulls":3},"Visszaigazolt vendégek","Összes visszaigazolt","Élelmiszer","Egyéb","Összesen"]
[null,"DÁTUM",null,"Felnőttek",{"$f":"SUMIF(VendégekTáblázat[RÉSZTVEVŐK],\"=Igen\",VendégekTáblázat[FELNŐTTEK])","v":26},{"$f":"ÉtelekTáblázat[[#Totals],[FELNŐTTENKÉNTI KÖLTSÉG]]","v":{"v":12.690089084110037,"d":"12.69 Ft"}},{"$f":"AlapvetőTételekKöltségeVendégenként","v":{"v":18.695652173913043,"d":"18.70 Ft"}},{"$f":"(RésztvevőkÖsszegzése[[#This Row],[Élelmiszer]]+RésztvevőkÖsszegzése[[#This Row],[Egyéb]])*FelnőttekÖsszesen","v":{"v":816.0292727086002,"d":"816.03 Ft"}}]
[null,"2011. Június 14.",null,"Gyermekek",{"$f":"SUMIF(VendégekTáblázat[RÉSZTVEVŐK],\"=Igen\",VendégekTáblázat[GYERMEKEK])","v":20},{"$f":"ÉtelekTáblázat[[#Totals],[GYERMEKENKÉNTI KÖLTSÉG]]","v":{"v":7.252884190656953,"d":"7.25 Ft"}},{"$f":"AlapvetőTételekKöltségeVendégenként","v":{"v":18.695652173913043,"d":"18.70 Ft"}},{"$f":"(RésztvevőkÖsszegzése[[#This Row],[Élelmiszer]]+RésztvevőkÖsszegzése[[#This Row],[Egyéb]])*GyermekekÖsszesen","v":{"v":518.9707272914,"d":"518.97 Ft"}}]
[{"$nulls":3},"Összeg",{"$f":"SUBTOTAL(109,RésztvevőkÖsszegzése[Összes visszaigazolt])","v":46},{"$f":"\"Átl.    \"&TEXT(SUBTOTAL(101,RésztvevőkÖsszegzése[Élelmiszer]),\"# ##0,00 Ft\")","v":"Átl.    9,97 Ft"},{"$f":"\"Átl.    \"&TEXT(SUBTOTAL(101,RésztvevőkÖsszegzése[Egyéb]),\"# ##0,00 Ft\")","v":"Átl.    18,70 Ft"},{"$f":"SUBTOTAL(109,RésztvevőkÖsszegzése[Összesen])","v":{"v":1335,"d":"1,335.00 Ft"}}]
[null,"IDŐPONT"]
[null,"du. 2–4 között"]
[]
[null,"HELY",null,"KÖLTSÉGVETÉS ÖSSZESÍTÉSE"]
[null,"Anna nagynéni háza",null,"TÉTEL","DARABSZÁM","KÖLTSÉGVETÉS ÖSSZEGE","TELJES KÖLTSÉG","KÜLÖNBSÉG"]
[{"$nulls":3},"Étel és ital",{"$f":"COUNTA(ÉtelekTáblázat[ÉTEL- VAGY ITALTÉTEL])","v":18},{"v":500,"d":"500.00 Ft"},{"$f":"ÉtelekTáblázat[[#Totals],[TELJES KÖLTSÉG]]","v":{"v":475,"d":"475.00 Ft"}},{"$f":"KöltségvetésÁttekintése[[#This Row],[KÖLTSÉGVETÉS ÖSSZEGE]]-KöltségvetésÁttekintése[[#This Row],[TELJES KÖLTSÉG]]","v":{"v":25,"d":"25.00 Ft"}}]
[{"$nulls":3},{"$f":"Táblázat1Fejléc","v":"Berendezés és kellékek"},{"$f":"COUNTA(Táblázat1Költségvetés[Berendezés és kellékek])","v":7},{"v":400,"d":"400.00 Ft"},{"$f":"Táblázat1Költségvetés[[#Totals],[Költség]]","v":{"v":400,"d":"400.00 Ft"}},{"$f":"KöltségvetésÁttekintése[[#This Row],[KÖLTSÉGVETÉS ÖSSZEGE]]-KöltségvetésÁttekintése[[#This Row],[TELJES KÖLTSÉG]]","v":{"v":0,"d":"0.00 Ft"}}]
[{"$nulls":3},{"$f":"Táblázat2Fejléc","v":"Díszítés"},{"$f":"COUNTA(Táblázat2Költségvetés[Díszítés])","v":4},{"v":150,"d":"150.00 Ft"},{"$f":"Táblázat2Költségvetés[[#Totals],[Költség]]","v":{"v":175,"d":"175.00 Ft"}},{"$f":"KöltségvetésÁttekintése[[#This Row],[KÖLTSÉGVETÉS ÖSSZEGE]]-KöltségvetésÁttekintése[[#This Row],[TELJES KÖLTSÉG]]","v":{"v":-25,"d":"-25.00 Ft"}}]
[{"$nulls":3},{"$f":"Táblázat3Fejléc","v":"Egyéb"},{"$f":"COUNTA(Táblázat3Költségvetés[Egyéb])","v":4},{"v":300,"d":"300.00 Ft"},{"$f":"Táblázat3Költségvetés[[#Totals],[Költség]]","v":{"v":285,"d":"285.00 Ft"}},{"$f":"KöltségvetésÁttekintése[[#This Row],[KÖLTSÉGVETÉS ÖSSZEGE]]-KöltségvetésÁttekintése[[#This Row],[TELJES KÖLTSÉG]]","v":{"v":15,"d":"15.00 Ft"}}]
[{"$nulls":3},"Összeg",{"$f":"SUBTOTAL(109,KöltségvetésÁttekintése[DARABSZÁM])","v":33},{"$f":"SUBTOTAL(109,KöltségvetésÁttekintése[KÖLTSÉGVETÉS ÖSSZEGE])","v":{"v":1350,"d":"1,350.00 Ft"}},{"$f":"SUBTOTAL(109,KöltségvetésÁttekintése[TELJES KÖLTSÉG])","v":{"v":1335,"d":"1,335.00 Ft"}},{"$f":"SUBTOTAL(109,KöltségvetésÁttekintése[KÜLÖNBSÉG])","v":{"v":15,"d":"15.00 Ft"}}]

{"sheet":"Vendéglista","index":1,"n_rows":22,"n_cols":12,"rows_kept":22}
[]
[]
[null,"Vendéglista"]
[]
[]
[]
[null,"NÉV","CÍM","TELEPÜLÉS","MEGYE","IRÁNYÍTÓSZÁM","TELEFON","E-MAIL CÍM","RÉSZTVEVŐK","GYERMEKEK","FELNŐTTEK","ÖSSZESEN"]
[null,"1. család","1. cím","1. település","1. megye","1. irányítószám","1. telefonszám","1. e-mail cím","Nem",2,2,{"$f":"SUM(VendégekTáblázat[[#This Row],[GYERMEKEK]:[FELNŐTTEK]])","v":4}]
[null,"2. család","2. cím","2. település","2. megye","2. irányítószám","2. telefonszám","2. e-mail cím","Igen",1,1,{"$f":"SUM(VendégekTáblázat[[#This Row],[GYERMEKEK]:[FELNŐTTEK]])","v":2}]
[null,"3. család","3. cím","3. település","3. megye","3. irányítószám","3. telefonszám","3. e-mail cím","Igen",3,3,{"$f":"SUM(VendégekTáblázat[[#This Row],[GYERMEKEK]:[FELNŐTTEK]])","v":6}]
[null,"4. család","4. cím","4. település","4. megye","4. irányítószám","4. telefonszám","4. e-mail cím",null,null,2,{"$f":"SUM(VendégekTáblázat[[#This Row],[GYERMEKEK]:[FELNŐTTEK]])","v":2}]
[null,"5. család","5. cím","5. település","5. megye","5. irányítószám","5. telefonszám","5. e-mail cím","Igen",4,3,{"$f":"SUM(VendégekTáblázat[[#This Row],[GYERMEKEK]:[FELNŐTTEK]])","v":7}]
[null,"6. család","6. cím","6. település","6. megye","6. irányítószám","6. telefonszám","6. e-mail cím","Igen",2,2,{"$f":"SUM(VendégekTáblázat[[#This Row],[GYERMEKEK]:[FELNŐTTEK]])","v":4}]
[null,"7. család","7. cím","7. település","7. megye","7. irányítószám","7. telefonszám","7. e-mail cím","Igen",1,4,{"$f":"SUM(VendégekTáblázat[[#This Row],[GYERMEKEK]:[FELNŐTTEK]])","v":5}]
[null,"8. család","8. cím","8. település","8. megye","8. irányítószám","8. telefonszám","8. e-mail cím","Nem",5,3,{"$f":"SUM(VendégekTáblázat[[#This Row],[GYERMEKEK]:[FELNŐTTEK]])","v":8}]
[null,"9. család","9. cím","9. település","9. megye","9. irányítószám","9. telefonszám","9. e-mail cím","Igen",3,2,{"$f":"SUM(VendégekTáblázat[[#This Row],[GYERMEKEK]:[FELNŐTTEK]])","v":5}]
[null,"10. család","10. cím","10. település","10. megye","10. irányítószám","10. telefonszám","10. e-mail cím","Igen",null,4,{"$f":"SUM(VendégekTáblázat[[#This Row],[GYERMEKEK]:[FELNŐTTEK]])","v":4}]
[null,"11. család","11. cím","11. település","11. megye","11. irányítószám","11. telefonszám","11. e-mail cím","Igen",3,5,{"$f":"SUM(VendégekTáblázat[[#This Row],[GYERMEKEK]:[FELNŐTTEK]])","v":8}]
[null,"12. család","12. cím","12. település","12. megye","12. irányítószám","12. telefonszám","12. e-mail cím","Nem",2,3,{"$f":"SUM(VendégekTáblázat[[#This Row],[GYERMEKEK]:[FELNŐTTEK]])","v":5}]
[null,"13. család","13. cím","13. település","13. megye","13. irányítószám","13. telefonszám","13. e-mail cím","Igen",3,2,{"$f":"SUM(VendégekTáblázat[[#This Row],[GYERMEKEK]:[FELNŐTTEK]])","v":5}]
[null,"14. család","14. cím","14. település","14. megye","14. irányítószám","14. telefonszám","14. e-mail cím","Nem",null,1,{"$f":"SUM(VendégekTáblázat[[#This Row],[GYERMEKEK]:[FELNŐTTEK]])","v":1}]
[null,"15. család","15. cím","15. település","15. megye","15. irányítószám","15. telefonszám","15. e-mail cím",null,null,2,{"$f":"SUM(VendégekTáblázat[[#This Row],[GYERMEKEK]:[FELNŐTTEK]])","v":2}]

{"sheet":"Étel és ital","index":2,"n_rows":25,"n_cols":10,"rows_kept":25}
[]
[]
[null,"Étel és ital"]
[]
[null,"Adja meg a költséget és a becsült adagokat a teljes darabszám és az adagonkénti költség automatikus kiszámításához a résztvevők teljes száma alapján"]
[null,"ÉTEL- VAGY ITALTÉTEL","TELJES KÖLTSÉG","GYERMEKENKÉNTI ADAG","FELNŐTTENKÉNTI ADAG","ÖSSZES ADAG","ADAGONKÉNTI KÖLTSÉG","GYERMEKENKÉNTI KÖLTSÉG","FELNŐTTENKÉNTI KÖLTSÉG","MEGJEGYZÉSEK"]
[null,"Szóda",{"v":15,"d":"15.00 Ft"},0.5,2,{"$f":"(ÉtelekTáblázat[[#This Row],[GYERMEKENKÉNTI ADAG]]*GyermekekÖsszesen)+(ÉtelekTáblázat[[#This Row],[FELNŐTTENKÉNTI ADAG]]*FelnőttekÖsszesen)","v":62},{"$f":"IFERROR(ÉtelekTáblázat[[#This Row],[TELJES KÖLTSÉG]]/ÉtelekTáblázat[[#This Row],[ÖSSZES ADAG]],\"\")","v":{"v":0.24193548387096775,"d":"0.24 Ft"}},{"$f":"IFERROR(ÉtelekTáblázat[[#This Row],[ADAGONKÉNTI KÖLTSÉG]]*ÉtelekTáblázat[[#This Row],[GYERMEKENKÉNTI ADAG]],\"\")","v":{"v":0.12096774193548387,"d":"0.12 Ft"}},{"$f":"IFERROR(ÉtelekTáblázat[[#This Row],[ADAGONKÉNTI KÖLTSÉG]]*ÉtelekTáblázat[[#This Row],[FELNŐTTENKÉNTI ADAG]],\"\")","v":{"v":0.4838709677419355,"d":"0.48 Ft"}},"2 literes palack"]
[null,"Dobozos gyümölcslé",{"v":15,"d":"15.00 Ft"},2,0,{"$f":"(ÉtelekTáblázat[[#This Row],[GYERMEKENKÉNTI ADAG]]*GyermekekÖsszesen)+(ÉtelekTáblázat[[#This Row],[FELNŐTTENKÉNTI ADAG]]*FelnőttekÖsszesen)","v":40},{"$f":"IFERROR(ÉtelekTáblázat[[#This Row],[TELJES KÖLTSÉG]]/ÉtelekTáblázat[[#This Row],[ÖSSZES ADAG]],\"\")","v":{"v":0.375,"d":"0.38 Ft"}},{"$f":"IFERROR(ÉtelekTáblázat[[#This Row],[ADAGONKÉNTI KÖLTSÉG]]*ÉtelekTáblázat[[#This Row],[GYERMEKENKÉNTI ADAG]],\"\")","v":{"v":0.75,"d":"0.75 Ft"}},{"$f":"IFERROR(ÉtelekTáblázat[[#This Row],[ADAGONKÉNTI KÖLTSÉG]]*ÉtelekTáblázat[[#This Row],[FELNŐTTENKÉNTI ADAG]],\"\")","v":{"v":0,"d":"0.00 Ft"}},"Alma és fehér szőlő"]
[null,"Bor",{"v":50,"d":"50.00 Ft"},0,2,{"$f":"(ÉtelekTáblázat[[#This Row],[GYERMEKENKÉNTI ADAG]]*GyermekekÖsszesen)+(ÉtelekTáblázat[[#This Row],[FELNŐTTENKÉNTI ADAG]]*FelnőttekÖsszesen)","v":52},{"$f":"IFERROR(ÉtelekTáblázat[[#This Row],[TELJES KÖLTSÉG]]/ÉtelekTáblázat[[#This Row],[ÖSSZES ADAG]],\"\")","v":{"v":0.9615384615384616,"d":"0.96 Ft"}},{"$f":"IFERROR(ÉtelekTáblázat[[#This Row],[ADAGONKÉNTI KÖLTSÉG]]*ÉtelekTáblázat[[#This Row],[GYERMEKENKÉNTI ADAG]],\"\")","v":{"v":0,"d":"0.00 Ft"}},{"$f":"IFERROR(ÉtelekTáblázat[[#This Row],[ADAGONKÉNTI KÖLTSÉG]]*ÉtelekTáblázat[[#This Row],[FELNŐTTENKÉNTI ADAG]],\"\")","v":{"v":1.9230769230769231,"d":"1.92 Ft"}}]
[null,"Sütemény",{"v":75,"d":"75.00 Ft"},1,1,{"$f":"(ÉtelekTáblázat[[#This Row],[GYERMEKENKÉNTI ADAG]]*GyermekekÖsszesen)+(ÉtelekTáblázat[[#This Row],[FELNŐTTENKÉNTI ADAG]]*FelnőttekÖsszesen)","v":46},{"$f":"IFERROR(ÉtelekTáblázat[[#This Row],[TELJES KÖLTSÉG]]/ÉtelekTáblázat[[#This Row],[ÖSSZES ADAG]],\"\")","v":{"v":1.6304347826086956,"d":"1.63 Ft"}},{"$f":"IFERROR(ÉtelekTáblázat[[#This Row],[ADAGONKÉNTI KÖLTSÉG]]*ÉtelekTáblázat[[#This Row],[GYERMEKENKÉNTI ADAG]],\"\")","v":{"v":1.6304347826086956,"d":"1.63 Ft"}},{"$f":"IFERROR(ÉtelekTáblázat[[#This Row],[ADAGONKÉNTI KÖLTSÉG]]*ÉtelekTáblázat[[#This Row],[FELNŐTTENKÉNTI ADAG]],\"\")","v":{"v":1.6304347826086956,"d":"1.63 Ft"}},"Megrendelés a helyi pékségből"]
[null,"Fagylalt",{"v":20,"d":"20.00 Ft"},1,1.5,{"$f":"(ÉtelekTáblázat[[#This Row],[GYERMEKENKÉNTI ADAG]]*GyermekekÖsszesen)+(ÉtelekTáblázat[[#This Row],[FELNŐTTENKÉNTI ADAG]]*FelnőttekÖsszesen)","v":59},{"$f":"IFERROR(ÉtelekTáblázat[[#This Row],[TELJES KÖLTSÉG]]/ÉtelekTáblázat[[#This Row],[ÖSSZES ADAG]],\"\")","v":{"v":0.3389830508474576,"d":"0.34 Ft"}},{"$f":"IFERROR(ÉtelekTáblázat[[#This Row],[ADAGONKÉNTI KÖLTSÉG]]*ÉtelekTáblázat[[#This Row],[GYERMEKENKÉNTI ADAG]],\"\")","v":{"v":0.3389830508474576,"d":"0.34 Ft"}},{"$f":"IFERROR(ÉtelekTáblázat[[#This Row],[ADAGONKÉNTI KÖLTSÉG]]*ÉtelekTáblázat[[#This Row],[FELNŐTTENKÉNTI ADAG]],\"\")","v":{"v":0.5084745762711864,"d":"0.51 Ft"}}]
[null,"Pudingos csészék",{"v":15,"d":"15.00 Ft"},1,0,{"$f":"(ÉtelekTáblázat[[#This Row],[GYERMEKENKÉNTI ADAG]]*GyermekekÖsszesen)+(ÉtelekTáblázat[[#This Row],[FELNŐTTENKÉNTI ADAG]]*FelnőttekÖsszesen)","v":20},{"$f":"IFERROR(ÉtelekTáblázat[[#This Row],[TELJES KÖLTSÉG]]/ÉtelekTáblázat[[#This Row],[ÖSSZES ADAG]],\"\")","v":{"v":0.75,"d":"0.75 Ft"}},{"$f":"IFERROR(ÉtelekTáblázat[[#This Row],[ADAGONKÉNTI KÖLTSÉG]]*ÉtelekTáblázat[[#This Row],[GYERMEKENKÉNTI ADAG]],\"\")","v":{"v":0.75,"d":"0.75 Ft"}},{"$f":"IFERROR(ÉtelekTáblázat[[#This Row],[ADAGONKÉNTI KÖLTSÉG]]*ÉtelekTáblázat[[#This Row],[FELNŐTTENKÉNTI ADAG]],\"\")","v":{"v":0,"d":"0.00 Ft"}},"Csomagolt csészés édesség vásárlása: vanília és csokoládé"]
[null,"Töltött gomba",{"v":32,"d":"32.00 Ft"},1,2,{"$f":"(ÉtelekTáblázat[[#This Row],[GYERMEKENKÉNTI ADAG]]*GyermekekÖsszesen)+(ÉtelekTáblázat[[#This Row],[FELNŐTTENKÉNTI ADAG]]*FelnőttekÖsszesen)","v":72},{"$f":"IFERROR(ÉtelekTáblázat[[#This Row],[TELJES KÖLTSÉG]]/ÉtelekTáblázat[[#This Row],[ÖSSZES ADAG]],\"\")","v":{"v":0.4444444444444444,"d":"0.44 Ft"}},{"$f":"IFERROR(ÉtelekTáblázat[[#This Row],[ADAGONKÉNTI KÖLTSÉG]]*ÉtelekTáblázat[[#This Row],[GYERMEKENKÉNTI ADAG]],\"\")","v":{"v":0.4444444444444444,"d":"0.44 Ft"}},{"$f":"IFERROR(ÉtelekTáblázat[[#This Row],[ADAGONKÉNTI KÖLTSÉG]]*ÉtelekTáblázat[[#This Row],[FELNŐTTENKÉNTI ADAG]],\"\")","v":{"v":0.8888888888888888,"d":"0.89 Ft"}},"Krémsajttal és kolbásszal töltött csiperkegomba"]
[null,"Pirítós",{"v":22,"d":"22.00 Ft"},0,3,{"$f":"(ÉtelekTáblázat[[#This Row],[GYERMEKENKÉNTI ADAG]]*GyermekekÖsszesen)+(ÉtelekTáblázat[[#This Row],[FELNŐTTENKÉNTI ADAG]]*FelnőttekÖsszesen)","v":78},{"$f":"IFERROR(ÉtelekTáblázat[[#This Row],[TELJES KÖLTSÉG]]/ÉtelekTáblázat[[#This Row],[ÖSSZES ADAG]],\"\")","v":{"v":0.28205128205128205,"d":"0.28 Ft"}},{"$f":"IFERROR(ÉtelekTáblázat[[#This Row],[ADAGONKÉNTI KÖLTSÉG]]*ÉtelekTáblázat[[#This Row],[GYERMEKENKÉNTI ADAG]],\"\")","v":{"v":0,"d":"0.00 Ft"}},{"$f":"IFERROR(ÉtelekTáblázat[[#This Row],[ADAGONKÉNTI KÖLTSÉG]]*ÉtelekTáblázat[[#This Row],[FELNŐTTENKÉNTI ADAG]],\"\")","v":{"v":0.8461538461538461,"d":"0.85 Ft"}},"Paradicsom és bazsalikom "]
[null,"Füstölt lazac",{"v":50,"d":"50.00 Ft"},1,2,{"$f":"(ÉtelekTáblázat[[#This Row],[GYERMEKENKÉNTI ADAG]]*GyermekekÖsszesen)+(ÉtelekTáblázat[[#This Row],[FELNŐTTENKÉNTI ADAG]]*FelnőttekÖsszesen)","v":72},{"$f":"IFERROR(ÉtelekTáblázat[[#This Row],[TELJES KÖLTSÉG]]/ÉtelekTáblázat[[#This Row],[ÖSSZES ADAG]],\"\")","v":{"v":0.6944444444444444,"d":"0.69 Ft"}},{"$f":"IFERROR(ÉtelekTáblázat[[#This Row],[ADAGONKÉNTI KÖLTSÉG]]*ÉtelekTáblázat[[#This Row],[GYERMEKENKÉNTI ADAG]],\"\")","v":{"v":0.6944444444444444,"d":"0.69 Ft"}},{"$f":"IFERROR(ÉtelekTáblázat[[#This Row],[ADAGONKÉNTI KÖLTSÉG]]*ÉtelekTáblázat[[#This Row],[FELNŐTTENKÉNTI ADAG]],\"\")","v":{"v":1.3888888888888888,"d":"1.39 Ft"}}]
[null,"Mini cipók",{"v":20,"d":"20.00 Ft"},1,2,{"$f":"(ÉtelekTáblázat[[#This Row],[GYERMEKENKÉNTI ADAG]]*GyermekekÖsszesen)+(ÉtelekTáblázat[[#This Row],[FELNŐTTENKÉNTI ADAG]]*FelnőttekÖsszesen)","v":72},{"$f":"IFERROR(ÉtelekTáblázat[[#This Row],[TELJES KÖLTSÉG]]/ÉtelekTáblázat[[#This Row],[ÖSSZES ADAG]],\"\")","v":{"v":0.2777777777777778,"d":"0.28 Ft"}},{"$f":"IFERROR(ÉtelekTáblázat[[#This Row],[ADAGONKÉNTI KÖLTSÉG]]*ÉtelekTáblázat[[#This Row],[GYERMEKENKÉNTI ADAG]],\"\")","v":{"v":0.2777777777777778,"d":"0.28 Ft"}},{"$f":"IFERROR(ÉtelekTáblázat[[#This Row],[ADAGONKÉNTI KÖLTSÉG]]*ÉtelekTáblázat[[#This Row],[FELNŐTTENKÉNTI ADAG]],\"\")","v":{"v":0.5555555555555556,"d":"0.56 Ft"}},"4 zacskó – vegyes"]
[null,"Krémsajt",{"v":10,"d":"10.00 Ft"},1,2,{"$f":"(ÉtelekTáblázat[[#This Row],[GYERMEKENKÉNTI ADAG]]*GyermekekÖsszesen)+(ÉtelekTáblázat[[#This Row],[FELNŐTTENKÉNTI ADAG]]*FelnőttekÖsszesen)","v":72},{"$f":"IFERROR(ÉtelekTáblázat[[#This Row],[TELJES KÖLTSÉG]]/ÉtelekTáblázat[[#This Row],[ÖSSZES ADAG]],\"\")","v":{"v":0.1388888888888889,"d":"0.14 Ft"}},{"$f":"IFERROR(ÉtelekTáblázat[[#This Row],[ADAGONKÉNTI KÖLTSÉG]]*ÉtelekTáblázat[[#This Row],[GYERMEKENKÉNTI ADAG]],\"\")","v":{"v":0.1388888888888889,"d":"0.14 Ft"}},{"$f":"IFERROR(ÉtelekTáblázat[[#This Row],[ADAGONKÉNTI KÖLTSÉG]]*ÉtelekTáblázat[[#This Row],[FELNŐTTENKÉNTI ADAG]],\"\")","v":{"v":0.2777777777777778,"d":"0.28 Ft"}},"2 nagy doboz"]
[null,"Kapribogyó",{"v":12,"d":"12.00 Ft"},1,2,{"$f":"(ÉtelekTáblázat[[#This Row],[GYERMEKENKÉNTI ADAG]]*GyermekekÖsszesen)+(ÉtelekTáblázat[[#This Row],[FELNŐTTENKÉNTI ADAG]]*FelnőttekÖsszesen)","v":72},{"$f":"IFERROR(ÉtelekTáblázat[[#This Row],[TELJES KÖLTSÉG]]/ÉtelekTáblázat[[#This Row],[ÖSSZES ADAG]],\"\")","v":{"v":0.16666666666666666,"d":"0.17 Ft"}},{"$f":"IFERROR(ÉtelekTáblázat[[#This Row],[ADAGONKÉNTI KÖLTSÉG]]*ÉtelekTáblázat[[#This Row],[GYERMEKENKÉNTI ADAG]],\"\")","v":{"v":0.16666666666666666,"d":"0.17 Ft"}},{"$f":"IFERROR(ÉtelekTáblázat[[#This Row],[ADAGONKÉNTI KÖLTSÉG]]*ÉtelekTáblázat[[#This Row],[FELNŐTTENKÉNTI ADAG]],\"\")","v":{"v":0.3333333333333333,"d":"0.33 Ft"}},"3 üveg"]
[null,"Csirkeszárnyak",{"v":45,"d":"45.00 Ft"},2,4,{"$f":"(ÉtelekTáblázat[[#This Row],[GYERMEKENKÉNTI ADAG]]*GyermekekÖsszesen)+(ÉtelekTáblázat[[#This Row],[FELNŐTTENKÉNTI ADAG]]*FelnőttekÖsszesen)","v":144},{"$f":"IFERROR(ÉtelekTáblázat[[#This Row],[TELJES KÖLTSÉG]]/ÉtelekTáblázat[[#This Row],[ÖSSZES ADAG]],\"\")","v":{"v":0.3125,"d":"0.31 Ft"}},{"$f":"IFERROR(ÉtelekTáblázat[[#This Row],[ADAGONKÉNTI KÖLTSÉG]]*ÉtelekTáblázat[[#This Row],[GYERMEKENKÉNTI ADAG]],\"\")","v":{"v":0.625,"d":"0.63 Ft"}},{"$f":"IFERROR(ÉtelekTáblázat[[#This Row],[ADAGONKÉNTI KÖLTSÉG]]*ÉtelekTáblázat[[#This Row],[FELNŐTTENKÉNTI ADAG]],\"\")","v":{"v":1.25,"d":"1.25 Ft"}},"Vásárlás a helyi gyorsétteremből"]
[null,"Csicseriborsókrém",{"v":10,"d":"10.00 Ft"},4,6,{"$f":"(ÉtelekTáblázat[[#This Row],[GYERMEKENKÉNTI ADAG]]*GyermekekÖsszesen)+(ÉtelekTáblázat[[#This Row],[FELNŐTTENKÉNTI ADAG]]*FelnőttekÖsszesen)","v":236},{"$f":"IFERROR(ÉtelekTáblázat[[#This Row],[TELJES KÖLTSÉG]]/ÉtelekTáblázat[[#This Row],[ÖSSZES ADAG]],\"\")","v":{"v":0.0423728813559322,"d":"0.04 Ft"}},{"$f":"IFERROR(ÉtelekTáblázat[[#This Row],[ADAGONKÉNTI KÖLTSÉG]]*ÉtelekTáblázat[[#This Row],[GYERMEKENKÉNTI ADAG]],\"\")","v":{"v":0.1694915254237288,"d":"0.17 Ft"}},{"$f":"IFERROR(ÉtelekTáblázat[[#This Row],[ADAGONKÉNTI KÖLTSÉG]]*ÉtelekTáblázat[[#This Row],[FELNŐTTENKÉNTI ADAG]],\"\")","v":{"v":0.2542372881355932,"d":"0.25 Ft"}},"Előző este el kell készíteni"]
[null,"Sajtos szeletek",{"v":14,"d":"14.00 Ft"},4,6,{"$f":"(ÉtelekTáblázat[[#This Row],[GYERMEKENKÉNTI ADAG]]*GyermekekÖsszesen)+(ÉtelekTáblázat[[#This Row],[FELNŐTTENKÉNTI ADAG]]*FelnőttekÖsszesen)","v":236},{"$f":"IFERROR(ÉtelekTáblázat[[#This Row],[TELJES KÖLTSÉG]]/ÉtelekTáblázat[[#This Row],[ÖSSZES ADAG]],\"\")","v":{"v":0.059322033898305086,"d":"0.06 Ft"}},{"$f":"IFERROR(ÉtelekTáblázat[[#This Row],[ADAGONKÉNTI KÖLTSÉG]]*ÉtelekTáblázat[[#This Row],[GYERMEKENKÉNTI ADAG]],\"\")","v":{"v":0.23728813559322035,"d":"0.24 Ft"}},{"$f":"IFERROR(ÉtelekTáblázat[[#This Row],[ADAGONKÉNTI KÖLTSÉG]]*ÉtelekTáblázat[[#This Row],[FELNŐTTENKÉNTI ADAG]],\"\")","v":{"v":0.3559322033898305,"d":"0.36 Ft"}},"Előző este el kell készíteni"]
[null,"Vegyes zöldségek",{"v":30,"d":"30.00 Ft"},4,10,{"$f":"(ÉtelekTáblázat[[#This Row],[GYERMEKENKÉNTI ADAG]]*GyermekekÖsszesen)+(ÉtelekTáblázat[[#This Row],[FELNŐTTENKÉNTI ADAG]]*FelnőttekÖsszesen)","v":340},{"$f":"IFERROR(ÉtelekTáblázat[[#This Row],[TELJES KÖLTSÉG]]/ÉtelekTáblázat[[#This Row],[ÖSSZES ADAG]],\"\")","v":{"v":0.08823529411764706,"d":"0.09 Ft"}},{"$f":"IFERROR(ÉtelekTáblázat[[#This Row],[ADAGONKÉNTI KÖLTSÉG]]*ÉtelekTáblázat[[#This Row],[GYERMEKENKÉNTI ADAG]],\"\")","v":{"v":0.35294117647058826,"d":"0.35 Ft"}},{"$f":"IFERROR(ÉtelekTáblázat[[#This Row],[ADAGONKÉNTI KÖLTSÉG]]*ÉtelekTáblázat[[#This Row],[FELNŐTTENKÉNTI ADAG]],\"\")","v":{"v":0.8823529411764707,"d":"0.88 Ft"}},"Sárgarépaszeletek, zeller, brokkoli, karfiol, piros és zöld paprika"]
[null,"Sajtgolyó",{"v":15,"d":"15.00 Ft"},5,10,{"$f":"(ÉtelekTáblázat[[#This Row],[GYERMEKENKÉNTI ADAG]]*GyermekekÖsszesen)+(ÉtelekTáblázat[[#This Row],[FELNŐTTENKÉNTI ADAG]]*FelnőttekÖsszesen)","v":360},{"$f":"IFERROR(ÉtelekTáblázat[[#This Row],[TELJES KÖLTSÉG]]/ÉtelekTáblázat[[#This Row],[ÖSSZES ADAG]],\"\")","v":{"v":0.041666666666666664,"d":"0.04 Ft"}},{"$f":"IFERROR(ÉtelekTáblázat[[#This Row],[ADAGONKÉNTI KÖLTSÉG]]*ÉtelekTáblázat[[#This Row],[GYERMEKENKÉNTI ADAG]],\"\")","v":{"v":0.20833333333333331,"d":"0.21 Ft"}},{"$f":"IFERROR(ÉtelekTáblázat[[#This Row],[ADAGONKÉNTI KÖLTSÉG]]*ÉtelekTáblázat[[#This Row],[FELNŐTTENKÉNTI ADAG]],\"\")","v":{"v":0.41666666666666663,"d":"0.42 Ft"}},"Vegyes: krémsajt, érett sajt dióval"]
[null,"Rágcsálnivaló",{"v":25,"d":"25.00 Ft"},5,10,{"$f":"(ÉtelekTáblázat[[#This Row],[GYERMEKENKÉNTI ADAG]]*GyermekekÖsszesen)+(ÉtelekTáblázat[[#This Row],[FELNŐTTENKÉNTI ADAG]]*FelnőttekÖsszesen)","v":360},{"$f":"IFERROR(ÉtelekTáblázat[[#This Row],[TELJES KÖLTSÉG]]/ÉtelekTáblázat[[#This Row],[ÖSSZES ADAG]],\"\")","v":{"v":0.06944444444444445,"d":"0.07 Ft"}},{"$f":"IFERROR(ÉtelekTáblázat[[#This Row],[ADAGONKÉNTI KÖLTSÉG]]*ÉtelekTáblázat[[#This Row],[GYERMEKENKÉNTI ADAG]],\"\")","v":{"v":0.3472222222222222,"d":"0.35 Ft"}},{"$f":"IFERROR(ÉtelekTáblázat[[#This Row],[ADAGONKÉNTI KÖLTSÉG]]*ÉtelekTáblázat[[#This Row],[FELNŐTTENKÉNTI ADAG]],\"\")","v":{"v":0.6944444444444444,"d":"0.69 Ft"}},"Vegyes"]
[null,"Összeg",{"$f":"SUBTOTAL(109,ÉtelekTáblázat[TELJES KÖLTSÉG])","v":{"v":475,"d":"475.00 Ft"}},{"$f":"SUBTOTAL(109,ÉtelekTáblázat[GYERMEKENKÉNTI ADAG])","v":34.5},{"$f":"SUBTOTAL(109,ÉtelekTáblázat[FELNŐTTENKÉNTI ADAG])","v":65.5},{"$f":"SUBTOTAL(109,ÉtelekTáblázat[ÖSSZES ADAG])","v":2393},{"$f":"SUBTOTAL(109,ÉtelekTáblázat[ADAGONKÉNTI KÖLTSÉG])","v":{"v":6.915706603622084,"d":"6.92 Ft"}},{"$f":"SUBTOTAL(109,ÉtelekTáblázat[GYERMEKENKÉNTI KÖLTSÉG])","v":{"v":7.252884190656953,"d":"7.25 Ft"}},{"$f":"SUBTOTAL(109,ÉtelekTáblázat[FELNŐTTENKÉNTI KÖLTSÉG])","v":{"v":12.690089084110037,"d":"12.69 Ft"}}]

{"sheet":"Egyéb alapvető tételek","index":3,"n_rows":30,"n_cols":5,"rows_kept":30,"merged":[[14,1,14,4],[22,1,22,4]]}
[]
[]
[null,"Egyéb alapvető tételek"]
[]
[]
[null,"Berendezés és kellékek","Költség","Megvásárolva","Megjegyzések"]
[null,"Terembérlés",{"v":250,"d":"250.00 Ft"},"Igen"]
[null,"Terítők",{"v":30,"d":"30.00 Ft"},"Igen","Bérleti díj"]
[null,"Asztalok és székek",{"v":0,"d":"0.00 Ft"},null,"A terembérletben szerepel"]
[null,"Italkendők",{"v":25,"d":"25.00 Ft"}]
[null,"Szalvéták",{"v":20,"d":"20.00 Ft"},null,"Bérleti díj"]
[null,"Felszolgálás",{"v":50,"d":"50.00 Ft"},null,"Bérleti díj"]
[null,"Üvegáru",{"v":25,"d":"25.00 Ft"},null,"Bérleti díj"]
[null,"Összeg",{"$f":"SUBTOTAL(109,Táblázat1Költségvetés[Költség])","v":{"v":400,"d":"400.00 Ft"}}]
[]
[]
[null,"Díszítés","Költség","Megvásárolva","Megjegyzések"]
[null,"Léggömbök",{"v":25,"d":"25.00 Ft"}]
[null,"Héliumos palack",{"v":50,"d":"50.00 Ft"},null,"Bérleti díj"]
[null,"Asztaldíszek",{"v":100,"d":"100.00 Ft"},"Igen","10 összesen"]
[null,"Üvegvázák",{"v":0,"d":"0.00 Ft"},null,"Kölcsönzés Ágitól"]
[null,"Összeg",{"$f":"SUBTOTAL(109,Táblázat2Költségvetés[Költség])","v":{"v":175,"d":"175.00 Ft"}}]
[]
[]
[null,"Egyéb","Költség","Megvásárolva","Megjegyzések"]
[null,"Meghívók",{"v":50,"d":"50.00 Ft"},"Igen"]
[null,"Postaköltség",{"v":60,"d":"60.00 Ft"},"Igen"]
[null,"Fényképész",{"v":125,"d":"125.00 Ft"},null,"2 óra (du. 2–4)"]
[null,"Ajándék a vendégeknek",{"v":50,"d":"50.00 Ft"}]
[null,"Összeg",{"$f":"SUBTOTAL(109,Táblázat3Költségvetés[Költség])","v":{"v":285,"d":"285.00 Ft"}}]

{"sheet":"Ülésrendtervező rács","index":4,"n_rows":43,"n_cols":34,"rows_kept":43,"merged":[[35,0,35,17],[35,19,35,33]]}
["Ülésrend"]
{"$rows_empty":33}
[{"$nulls":33},"*1 négyzet= megközelítőleg 1 négyzetláb"]
["Megjegyzések",{"$nulls":18},{"$f":"\" Visszaigazolt vendégek összesen: \"&VisszaigazoltVendégek","v":" Visszaigazolt vendégek összesen: 46"}]
[{"$nulls":19},"Az alábbi terítékek bármelyike használható:"]
[{"$nulls":20},{"$f":"ROUNDUP(VisszaigazoltVendégek/6,0)&\" 140 cm átmérőjű kerek asztalok (6 ülőhely)\"","v":"8 140 cm átmérőjű kerek asztalok (6 ülőhely)"}]
[{"$nulls":20},{"$f":"ROUNDUP(VisszaigazoltVendégek/8,0) &\" 152 cm átmérőjű kerek asztalok (8 ülőhely)\"","v":"6 152 cm átmérőjű kerek asztalok (8 ülőhely)"}]
[{"$nulls":20},{"$f":"ROUNDUP(VisszaigazoltVendégek/10,0)&\" 183 cm átmérőjű kerek asztalok (10 ülőhely)\"","v":"5 183 cm átmérőjű kerek asztalok (10 ülőhely)"}]
[{"$nulls":20},{"$f":"ROUNDUP(VisszaigazoltVendégek/6,0)& \" 76x183 cm-es négyszögletű asztalok (6 ülőhely)\"","v":"8 76x183 cm-es négyszögletű asztalok (6 ülőhely)"}]
[{"$nulls":20},{"$f":"ROUNDUP(VisszaigazoltVendégek/8,0)&\" 76x244 cm-es négyszögletű asztalok (8 ülőhely)\"","v":"6 76x244 cm-es négyszögletű asztalok (8 ülőhely)"}]
[{"$nulls":19},"(Asztalok közti javasolt távolság: 1 m)"]